Cogmind - Beta 11.1 @@@ ROGUE MODE // 2022.12.11 @ 23:54:45 Player: ILikeMonsters1890 Result: Destroyed by G-47 Trooper with Particle Gun Performance ------------- Evolutions (0) 0 Regions Visited (2) 400 Robots Destroyed (15) 75 Value Destroyed (192) 192 Prototype IDs (2) 40 Alien Tech Used (0) 0 Bonus (0) 0 TOTAL SCORE: 707 Bonus ------- None Cogmind --------- Core Integrity 0/250 Matter 265/300 Energy 121/125 System Corruption 0% Temperature Cool (9) Movement Rolling (95) Ox1 Location -10/Mines Parts ------- > --- POWER (1) -------- Light Ion Engine > --- PROPULSION (2) --- Wheel > --- UTILITY (2) ------ Small Storage Unit Hardened Light Armor Plating > --- WEAPON (2) ------- Mining Claw Mining Claw > --- INVENTORY (8) ---- Hardened Light Armor Plating Mining Claw Mining Claw Peak State ------------ > --- POWER ------------ Light Nuclear Core > --- PROPULSION ------- Wheel Wheel > --- UTILITY ---------- Small Storage Unit Seismic Detector > --- WEAPON ----------- Assault Rifle Light Assault Rifle > --- INVENTORY -------- Light Ion Engine Light Ion Engine Wheel Wheel Hardened Light Armor Plating Hardened Light Armor Plating Small Laser Light Assault Rifle [Rating: 10] Favorites ----------- Power Light Nuclear Core Engine Ion Engine Power Core Light Nuclear Core Propulsion Wheel Leg Aluminum Leg Wheel Wheel Utility Small Storage Unit Device Seismic Detector Storage Small Storage Unit Protection Hardened Light Armor Plating Weapon Light Assault Rifle Energy Gun EM Pulse Gun Ballistic Gun Light Assault Rifle Slashing Weapon Mining Claw Build | -11 -10 -10 ------- Run | Scr Mat Min Slots Evolved . | . . . Power . | . . . Propulsion . | . . . Utility . | . . . Weapon . | . . . Parts Attached 13 | 4 4 5 Power 3 | . 1 2 Engine 2 | . . 2 Core 1 | . 1 . Reactor . | . . . Propulsion 4 | 2 . 2 Treads . | . . . Leg . | . . . Wheel 4 | 2 . 2 Hover . | . . . Flight . | . . . Utility 2 | 1 . 1 Device 1 | 1 . . Storage . | . . . Processor . | . . . Hackware . | . . . Protection 1 | . . 1 Artifact . | . . . Weapon 4 | 1 3 . Energy Gun . | . . . Energy Cannon . | . . . Ballistic Gun 2 | 1 1 . Ballistic Cannon . | . . . Launcher . | . . . Special Weapon . | . . . Impact Weapon . | . . . Slashing Weapon 2 | . 2 . Piercing Weapon . | . . . Special Melee Weapon . | . . . Unidentified Prototypes . | . . . Parts Lost 6 | . . 6 Power 2 | . . 2 Propulsion 3 | . . 3 Utility 1 | . . 1 Weapon . | . . . Highest Loss Streak 6 | . . 6 To Critical Strikes . | . . . Average Slot Usage (%) 98 | . 100 97 Engine 3 | . 4 1 Core 10 | . 9 11 Wheel 27 | . 28 26 Device 12 | . 14 11 Storage 14 | . 14 14 Protection 1 | . . 2 Ballistic Gun 10 | . 20 . Slashing Weapon 17 | . 7 28 Naked Turns . | . . . Heaviest Build 17 | 13 15 17 Greatest Support 20 | 20 20 20 Greatest Overweight (x) 1 | . . 1 Average Overweight (x) . | . . . Largest Inventory Capacity 8 | 8 8 8 Average Capacity 8 | 8 8 8 Most Carried 8 | 6 8 8 Average Carried 6 | 3 7 7 Final Capacity 8 | 8 8 8 Final Carried 8 | 5 8 3 Class Distribution -------------------- 100% | Mutant Dominant Class ---------------- Mutant | -10/Materials Mutant | -10/Mines Resources | -11 -10 -10 ----------- Run | Scr Mat Min Matter Collected 384 | 300 84 . Remotely . | . . . Salvage Created 665 | 248 240 177 Parts 37 | 25 8 4 Haulers Intercepted 1 | . 1 . Recyclers Shooed 1 | . 1 . Parts Field Recycled . | . . . Retrieved Matter . | . . . Parts Self-Destructed . | . . . Prevented . | . . . Kills | -11 -10 -10 ------- Run | Scr Mat Min Combat Hostiles Destroyed 3 | . 2 1 Melee 1 | . . 1 Guns 2 | . 2 . Classes Destroyed 4 | 2 2 . Tunneler 9 | 9 . . Hauler 1 | . 1 . Recycler 2 | 1 1 . Grunt 3 | . 2 1 Best Kill Streak 3 | 3 3 1 Combat Bots Only 2 | . 2 1 Max Kills in Single Turn 1 | 1 1 1 Gunslinging . | . . . Exploded . | . . . Melee 1 | . . 1 Uniques/NPCs Destroyed . | . . . Combat | -11 -10 -10 -------- Run | Scr Mat Min Damage Taken 763 | . 129 634 Core 258 | . 40 218 Absorbed by Shields . | . . . Core Remaining (%) 100 | 100 . . Volleys Fired 46 | 30 16 . Largest 2 | 2 2 . Hottest 40 | 40 40 . Shots Fired 92 | 60 32 . Gun 92 | 60 32 . Cannon . | . . . Launcher . | . . . Special . | . . . Kinetic 92 | 60 32 . Thermal . | . . . Explosive . | . . . Electromagnetic . | . . . Robot Hit Streak 20 | 20 19 . Robot Miss Streak 2 | 2 2 . Penetration Max . | . . . Secondary Targets . | . . . Shots Hit Robots 84 | 42 25 17 Core Hits 31 | 18 11 2 Critical Kills . | . . . Critical Parts Destroyed . | . . . Critical Strikes . | . . . Melee Attacks 29 | . 1 28 Impact . | . . . Slashing 29 | . 1 28 Piercing . | . . . Sneak Attacks . | . . . Combat Hostiles . | . . . Follow-up Attacks 3 | . . 3 Damage Inflicted 1010 | 335 214 461 Guns 549 | 335 214 . Cannons . | . . . Explosions . | . . . Melee 461 | . . 461 Ramming . | . . . Kinetic 549 | 335 214 . Thermal . | . . . Explosive . | . . . Electromagnetic . | . . . Impact . | . . . Slashing 461 | . . 461 Piercing . | . . . Highest Corruption . | . . . Average Corruption . | . . . Corruption Purged . | . . . Corruption Blocked . | . . . Overload Shots . | . . . Overflow Damage 108 | . . 108 Projectiles . | . . . Explosions . | . . . Melee 108 | . . 108 Knockbacks . | . . . Impact . | . . . Kinetic . | . . . Secondary . | . . . Self-Inflicted Damage . | . . . Shots . | . . . Rammed . | . . . Targets Rammed . | . . . Kicked . | . . . Crushed . | . . . Highest Temperature 18 | . 18 10 Average Temperature 5 | . 6 2 Received Heat Transfer 456 | . 72 384 Siege Activations . | . . . Robots Corrupted . | . . . Combat Hostiles . | . . . Parts Fried . | . . . Impact Corruptions . | . . . Robots Melted . | . . . Combat Hostiles . | . . . Parts Melted . | . . . Heat Transferred . | . . . Parts Sabotaged . | . . . Parts Stolen . | . . . Parts Stripped . | . . . Power Chain Reactions . | . . . Missiles Intercepted . | . . . Alert | -11 -10 -10 ------- Run | Scr Mat Min Peak Influence 166 | 50 166 114 Initial 64 | . 32 64 Average 62 | 26 84 78 Maximum Alert Level . | . . . Low Security (%) 100 | 100 100 100 Level 1 . | . . . Level 2 . | . . . Level 3 . | . . . Level 4 . | . . . Level 5 . | . . . High Security . | . . . Max Security . | . . . Squads Dispatched 1 | . 1 . Investigation . | . . . Extermination . | . . . Reinforcement 1 | . 1 . Assault . | . . . Garrison . | . . . Intercept . | . . . Searches Triggered . | . . . Construction Impeded . | . . . Haulers Reinforced . | . . . Active Scanning Responses . | . . . Cargo Convoy Interrupts . | . . . Stealth | -11 -10 -10 --------- Run | Scr Mat Min Distress Signals . | . . . Communications Jammed . | . . . Distress Signals . | . . . Times Spotted 14 | . 9 5 Peak Tracking Total 6 | . 6 3 Tactical Retreats 1 | . . 1 Traps | -11 -10 -10 ------- Run | Scr Mat Min Traps Triggered . | . . . Indirectly . | . . . Trap Hack Attempts . | . . . Triggered . | . . . Disarmed . | . . . Reprogrammed . | . . . Reused . | . . . Traps Extracted . | . . . Installed . | . . . Triggered . | . . . Machines | -11 -10 -10 ---------- Run | Scr Mat Min Machines Disabled . | . . . Max in Single Turn . | . . . Machines Sabotaged . | . . . Garrisons Compromised . | . . . Overloaded Fab Kills . | . . . Hacking | -11 -10 -10 --------- Run | Scr Mat Min Machines Accessed 3 | . 3 . Terminals 3 | . 3 . Fabricators . | . . . Repair Stations . | . . . Recycling Units . | . . . Scanalyzers . | . . . Garrison Access . | . . . Total Hacks 8 | . 8 . Successful 3 | . 3 . Failed 5 | . 5 . Catastrophic . | . . . Database Lockouts . | . . . Manual 2 | . 2 . Terminals 8 | . 8 . Fabricators . | . . . Repair Stations . | . . . Recycling Units . | . . . Scanalyzers . | . . . Garrison Access . | . . . Terminal Hacks 3 | . 3 . Prototype ID Bank 1 | . 1 . Branch Access Points 1 | . 1 . Zone Layout 1 | . 1 . Fabricator Hacks . | . . . Repair Station Hacks . | . . . Recycling Unit Hacks . | . . . Scanalyzer . | . . . Garrison Access Hacks . | . . . Unauthorized Hacks . | . . . Terminals . | . . . Fabricators . | . . . Repair Stations . | . . . Recycling Units . | . . . Scanalyzers . | . . . Garrison Access . | . . . Data Cores Recovered . | . . . Used . | . . . Hacking Detections 3 | . 3 . Full Trace Events . | . . . Feedback Events . | . . . Feedback Blocked . | . . . Robot Schematics Acquired . | . . . Robots Built . | . . . Authchips . | . . . Time . | . . . Total Robot Build Rating . | . . . Part Schematics Acquired . | . . . Parts Built . | . . . Authchips . | . . . Time . | . . . Total Part Build Rating . | . . . Parts Repaired . | . . . Time . | . . . Parts Recycled . | . . . Recycled Matter . | . . . Retrieved Matter . | . . . Retrieved Components . | . . . Parts Scanalyzed . | . . . Part Schematics Acquired . | . . . Parts Damaged . | . . . Bothacking | -11 -10 -10 ------------ Run | Scr Mat Min Used RIF Installer . | . . . Robots Hacked . | . . . Non-combat . | . . . Combat . | . . . Robot Hacks Applied . | . . . Relay Couplers Released . | . . . Fabnet Peak Effective % . | . . . Robots Rewired . | . . . Allies Hacked . | . . . Hacks Repelled . | . . . Allies | -11 -10 -10 -------- Run | Scr Mat Min Total Allies . | . . . Largest Group . | . . . Highest-Rated Group . | . . . Highest-Rated Ally . | . . . Total Orders . | . . . Ally Attacks . | . . . Total Damage . | . . . Kills . | . . . Allies Corrupted . | . . . Allies Melted . | . . . Intel | -11 -10 -10 ------- Run | Scr Mat Min Robot Analysis Total . | . . . Derelict Logs Recovered 1 | . . 1 Drone Launches . | . . . Drone Recoveries . | . . . Exploration | -11 -10 -10 ------------- Run | Scr Mat Min Turns Passed 754 | 268 259 227 Spaces Moved 514 | 104 243 167 Core . | . . . Treads . | . . . Legs . | . . . Wheels 514 | 104 243 167 Hover . | . . . Flight . | . . . Fastest Speed 80 | 80 80 80 Average Speed 80 | 80 80 80 Slowest Speed 95 | 80 80 95 Overloaded Moves . | . . . Propulsion Burnouts . | . . . Robots Hopped . | . . . Cave-ins Triggered . | . . . Exploration Rate (%) 20 | 3 35 22 Regions Visited 2 Branch Regions 1 Pre-discovered Areas . | . . . Known Exits Taken 1 | . 1 . Unknown Exits Taken 1 | 1 . . Scrap Searched . | . . . Spaces Dug . | . . . Terrain Destroyed . | . . . Melee . | . . . Projectile . | . . . AOE . | . . . Terrain Rammed . | . . . Walls Destroyed . | . . . Machines Disabled . | . . . Actions | -11 -10 -10 --------- Run | Scr Mat Min Total 733 | 242 280 211 Wait 106 | 91 1 14 Move 512 | 103 242 167 Hop . | . . . Pick Up 16 | 7 9 . Fast Attach . | . . . Attach 6 | 1 . 5 Detach . | . . . Swap 7 | 3 4 . Drop 14 | 7 7 . Fire 46 | 30 16 . Melee 26 | . 1 25 Ram . | . . . Kick . | . . . Crush . | . . . Escape Stasis . | . . . Rewire . | . . . Trap . | . . . Miscellaneous . | . . . Route ------- -11/Scrapyard -10/Materials (discovered 2 exits: *Min x2) -10/Mines (discovered 1 exit: Mat) History --------- Turn | Location | Event 11 | -11/Scrapyard | Discovered new exit (range 3) 269 | -11/Scrapyard | Entered Materials 303 | -10/Materials | Build established: Mutant 423 | -10/Materials | Discovered new exit (range 7) 429 | -10/Materials | Discovered new exit (range 14) 506 | -10/Materials | Identified exit to Mines 528 | -10/Materials | Entered Mines 614 | -10/Mines | Identified exit to Materials 720 | -10/Mines | Core integrity fell below 50% 748 | -10/Mines | Core integrity fell below 20% 755 | -10/Mines | Destroyed by G-47 Trooper with Particle Gun Last Messages --------------- 00577_ Destroyed Wheel. 00577_ K-01 Serf destroyed. 00610_ K-01 Serf collects debris. 00614_ Acquired derelict log, extracted data. 00624_ K-01 Serf collects debris. 00674_ Mining Claw follow-up attack on G-34 Mercenary. 00690_ G-34 Mercenary Sml. Laser ripped off. 00698_ K-01 Serf collects debris. 00702_ G-34 Mercenary destroyed. 00702_ K-01 Serf collects debris. 00707_ Wheel destroyed. 00708_ K-01 Serf collects debris. 00711_ Seismic Detector destroyed. 00711_ Critical hit (Burn: +37). 00712_ K-01 Serf collects debris. 00713_ Lgt. Nuclear Core destroyed. 00715_ K-01 Serf collects debris. 00728_ Lgt. Ion Engine destroyed. 00730_ Mining Claw follow-up attack on G-47 Trooper. 00735_ Wheel destroyed. Map ----- +----------------------------------------------------+ | ????????????????????????????????????????????????? | | ?????????????????????????####???????????????????? | | ???????????????????????### ##??????????????????? | | ?????????????????????### #??????????????????? | | ???????????????????### ##?????????????????? | | ???????????????????? ##????????????????? | | ?????????????????????# #????????????????? | | ??????????????????????# ?????????????????? | | ??????????????????????# ?????????????????? | | ??????????????????????# #?????????????????? | | ???????????????????????# ## ####??????????????? | | ????????????????????????# ## ## ##?????????????? | | ????????????????????????# # #?????????????? | | ????????????????????????# #### #??#####??????? | | ????????????????????????# ### #?## ##?????? | | ????????????????????????# ## ### ##????? | | ????????????????????????# #????? | | ????????????????????????# [ #????? | | ????????????????????????###### ## ##???? | | ???????????????????????#######! #### ####? | | ???????????????????????# %##??# % ## | | ???????????????????????#g##### ##???## # | | ???????????????????????# #??## ##?????## *% # | | ???????????????????????# #### #???????### !## | | ???????????????????????# g #?????????# ##? | | ??????????